bitfinex/quotes_BTCUSD_20240719
["timestamp","ask_amount","ask_price","bid_price","bid_amount"]
[1721367741517,2.02634048,64240.0,64239.0,0.21775987]
[1721367741518,1.71363211,64240.0,64239.0,0.21775987]
[1721367741727,1.0504712,64240.0,64239.0,0.21775987]
[1721367741918,1.0970356,64240.0,64239.0,0.21775987]
[1721367742073,1.09703577,64240.0,64239.0,0.21775987]
[1721367742279,1.0504712,64240.0,64239.0,0.21775987]
[1721367742485,1.23808664,64240.0,64239.0,0.21775987]
[1721367743161,1.26137189,64240.0,64239.0,0.21775987]
[1721367743857,1.14494564,64240.0,64239.0,0.21775987]
[1721367744051,1.23806537,64240.0,64239.0,0.21775987]
[1721367744252,1.26137189,64240.0,64239.0,0.21775987]
[1721367745240,1.14494564,64240.0,64239.0,0.21775987]
[1721367745423,1.05031602,64240.0,64239.0,0.21775987]
[1721367745627,1.20175001,64240.0,64239.0,0.21775987]
[1721367745826,1.14550873,64240.0,64239.0,0.21775987]
[1721367748475,1.167154,64240.0,64239.0,0.21775987]
[1721367748830,1.0506134,64240.0,64239.0,0.21775987]
[1721367749008,1.16683644,64240.0,64239.0,0.21775987]
[1721367749204,1.05029957,64240.0,64239.0,0.21775987]
[1721367751207,0.63896757,64240.0,64239.0,0.21775987]
[1721367751426,0.17196957,64240.0,64239.0,0.21775987]
[1721367751633,0.24192343,64240.0,64239.0,0.21775987]
[1721367751840,0.32763557,64240.0,64239.0,0.21775987]
[1721367752218,0.39758943,64240.0,64239.0,0.21775987]
[1721367752901,0.24192343,64240.0,64239.0,0.21775987]
[1721367753305,0.32763557,64240.0,64239.0,0.21775987]
[1721367754134,0.42090939,64240.0,64239.0,0.21775987]
[1721367754334,0.32763557,64240.0,64239.0,0.21775987]
[1721367754538,0.32945948,64240.0,64239.0,0.21775987]
[1721367754826,0.17379348,64240.0,64239.0,0.21775987]
[1721367755030,0.24374828,64240.0,64239.0,0.21775987]
[1721367755238,0.17379348,64240.0,64239.0,0.21775987]
[1721367755445,0.17339762,64240.0,64239.0,0.37342787]
[1721367755648,0.24335659,64240.0,64239.0,0.37342787]
[1721367756464,0.24335659,64240.0,64239.0,0.32749401]
[1721367756683,0.24335659,64240.0,64239.0,0.17409976]
[1721367757404,0.01483,64240.0,64239.0,0.95244176]
[1721367758341,0.00683,64240.0,64239.0,0.95144176]
[1721367758541,0.01183,64240.0,64239.0,0.95144176]
[1721367758946,0.00583,64240.0,64239.0,0.95044176]
[1721367759189,0.01083,64240.0,64239.0,0.95044176]
[1721367762610,0.01083,64240.0,64239.0,0.17209976]
[1721367763192,0.01083,64240.0,64239.0,0.32776776]
[1721367766894,0.01083,64240.0,64239.0,0.63910476]
[1721367767458,0.00583,64240.0,64239.0,0.63910476]
[1721367767902,0.00883,64240.0,64239.0,0.63910476]
[1721367768247,0.00583,64240.0,64239.0,0.63910476]
[1721367768787,0.00183,64240.0,64239.0,0.63910476]
[1721367768990,0.00483,64240.0,64239.0,0.63910476]
[1721367769756,0.00583,64240.0,64239.0,0.63910476]
[1721367769905,0.00183,64240.0,64239.0,0.63910476]
[1721367771069,0.00083,64240.0,64239.0,0.63910476]
[1721367771509,0.00183,64240.0,64239.0,0.63910476]
[1721367772064,0.00283,64240.0,64239.0,0.63910476]
[1721367776833,0.06250896,64240.0,64239.0,0.63910476]
[1721367777222,0.06250896,64240.0,64239.0,0.95044176]
[1721367778122,0.00283,64240.0,64239.0,0.95044176]
[1721367780419,0.00283,64240.0,64239.0,0.63910476]
[1721367780772,0.00283,64240.0,64239.0,0.95044176]
[1721367781416,0.06258487,64240.0,64239.0,0.95044176]
[1721367783495,0.16363997,64240.0,64239.0,0.95044176]
[1721367783818,0.16383872,64240.0,64239.0,0.95044176]
[1721367786748,0.16183872,64240.0,64239.0,0.95044176]
[1721367787181,0.16183084,64240.0,64239.0,0.95335476]
[1721367787564,0.16183084,64240.0,64239.0,0.95235476]
[1721367787892,0.16183084,64240.0,64239.0,0.95435476]
[1721367788523,0.16183084,64240.0,64239.0,0.64301776]
[1721367788879,0.16183084,64240.0,64239.0,0.95435476]
[1721367789759,0.16183084,64240.0,64239.0,0.64301776]
[1721367789967,0.16069193,64240.0,64239.0,0.64301776]
[1721367790367,0.16025189,64240.0,64239.0,0.64301776]
[1721367793540,0.10074619,64240.0,64239.0,0.64301776]
[1721367793698,0.16021749,64240.0,64239.0,0.64301776]
[1721367794330,0.20690214,64240.0,64239.0,0.64301776]
[1721367796389,0.16021749,64240.0,64239.0,0.64301776]
[1721367796844,0.16017098,64240.0,64239.0,0.64301776]
[1721367797040,0.16017558,64240.0,64239.0,0.64301776]
[1721367797214,0.23023856,64240.0,64239.0,0.64301776]
[1721367797634,0.16017558,64240.0,64239.0,0.64301776]
[1721367799824,0.10698565,64240.0,64239.0,0.95435476]
[1721367800026,0.00083,64240.0,64239.0,0.95435476]
[1721367800584,0.00083,64240.0,64239.0,1.26569176]
[1721367806160,0.00083,64240.0,64239.0,1.4200735]
[1721367807083,0.00083,64240.0,64239.0,1.4190735]
[1721367807284,0.00083,64240.0,64239.0,1.4170735]
[1721367807734,0.00083,64240.0,64239.0,1.4200735]
[1721367807936,0.00083,64240.0,64239.0,1.42663667]
[1721367808795,0.00083,64240.0,64239.0,1.43963667]
[1721367809219,0.00083,64240.0,64239.0,1.44263667]
[1721367809871,0.00083,64240.0,64239.0,1.43963667]
[1721367810036,0.00083,64240.0,64239.0,1.45163667]
[1721367810981,0.00083,64240.0,64239.0,1.50163667]
[1721367812373,0.00083,64240.0,64239.0,1.81297367]
[1721367812732,0.00083,64240.0,64239.0,1.9422538]
[1721367812940,0.00083,64240.0,64239.0,1.81297367]
[1721367813170,0.00083,64240.0,64239.0,1.80097367]
[1721367813579,0.00183,64240.0,64239.0,1.80197367]
[1721367813991,0.00083,64240.0,64239.0,1.80197367]
[1721367815750,0.00183,64240.0,64239.0,1.81597367]
[1721367816512,0.00183,64240.0,64239.0,1.94525236]
[1721367823234,0.00183,64240.0,64239.0,1.94524661]
[1721367825369,0.00183,64240.0,64239.0,1.81597367]
[1721367825595,0.00183,64240.0,64239.0,1.94525021]
[1721367828683,0.00183,64240.0,64239.0,2.25658721]
[1721367828883,0.00183,64240.0,64239.0,1.94525021]
[1721367829299,0.00183,64240.0,64239.0,1.94524567]
[1721367832498,0.00183,64240.0,64239.0,1.81597367]
[1721367832763,0.00183,64240.0,64239.0,1.94524567]
[1721367835762,0.00183,64240.0,64239.0,1.81597367]
[1721367836171,0.00183,64240.0,64239.0,1.94524567]
[1721367841505,0.00183,64240.0,64239.0,1.81597367]
[1721367841719,0.00183,64240.0,64239.0,1.94524364]
[1721367844333,0.00183,64240.0,64239.0,1.94187058]
[1721367844807,0.00183,64240.0,64239.0,1.94189901]
[1721367845220,0.00183,64240.0,64239.0,1.89524364]
[1721367845418,0.00183,64240.0,64239.0,1.94524364]
[1721367845575,0.00183,64240.0,64239.0,1.89524364]
[1721367846385,0.00183,64240.0,64239.0,1.94524364]
[1721367847015,0.00183,64240.0,64239.0,2.0152267]
[1721367847466,0.00183,64240.0,64239.0,1.9652267]
[1721367848021,0.00183,64240.0,64239.0,1.88598682]
[1721367848234,0.00183,64240.0,64239.0,2.01525645]
[1721367849420,0.00183,64240.0,64239.0,2.3604444]
[1721367849626,0.00183,64240.0,64239.0,2.01525645]
[1721367850010,0.00183,64240.0,64239.0,1.99192184]
[1721367851347,0.00183,64240.0,64239.0,1.99193379]
[1721367851552,0.00183,64240.0,64239.0,1.94524794]
[1721367851747,0.00183,64240.0,64239.0,1.89524794]
[1721367854341,0.00183,64240.0,64239.0,1.94193379]
[1721367854506,0.00183,64240.0,64239.0,1.94195044]
[1721367854714,0.00183,64240.0,64239.0,1.99195044]
[1721367857447,0.00183,64240.0,64239.0,1.94195044]
[1721367857652,0.00183,64240.0,64239.0,1.76597367]
[1721367857847,0.00183,64240.0,64239.0,1.94196718]
[1721367858278,0.00183,64240.0,64239.0,1.89525056]
[1721367858886,0.00183,64240.0,64239.0,0.35872082]
[1721367858887,0.07333,64240.0,64239.0,0.35872082]
[1721367859102,0.10234942,64240.0,64239.0,0.06421276]
[1721367859927,0.10134942,64240.0,64239.0,0.05021276]
[1721367860269,0.10134942,64240.0,64239.0,0.05921276]
[1721367860475,0.08923,64240.0,64239.0,0.05921276]
[1721367860933,0.08923,64240.0,64239.0,0.04521276]
[1721367861957,0.08923,64240.0,64239.0,0.05521276]
[1721367875518,0.07233,64240.0,64239.0,0.05521276]
[1721367875773,0.00083,64240.0,64239.0,0.66571776]
[1721367875990,0.00083,64240.0,64239.0,0.97705476]
[1721367876237,0.00083,64240.0,64239.0,0.35438076]
[1721367882017,0.00083,64240.0,64239.0,0.66571776]
[1721367884017,0.00083,64240.0,64239.0,0.58591776]
[1721367887177,0.01295211,64240.0,64239.0,0.58591776]
[1721367887604,0.00083,64240.0,64239.0,0.58591776]
[1721367888201,0.00083,64240.0,64239.0,0.21088076]
[1721367888429,0.07233,64240.0,64239.0,0.05521276]
[1721367888839,0.13291559,64240.0,64239.0,0.05521276]
[1721367889822,0.07233,64240.0,64239.0,0.05521276]
[1721367890024,0.13292329,64240.0,64239.0,0.05521276]
[1721367893171,0.13272772,64240.0,64239.0,0.05521276]
[1721367893376,0.07233,64240.0,64239.0,0.05521276]
[1721367893774,0.28818741,64240.0,64239.0,0.05521276]
[1721367893958,0.59951941,64240.0,64239.0,0.05521276]
[1721367895398,0.28818741,64240.0,64239.0,0.05521276]
[1721367896363,0.227996,64240.0,64239.0,0.05521276]
[1721367896491,0.28750849,64240.0,64239.0,0.05521276]
[1721367899687,0.28762569,64240.0,64239.0,0.05521276]
[1721367900099,0.28772377,64240.0,64239.0,0.05521276]
[1721367901987,0.227996,64240.0,64239.0,0.05521276]
[1721367902226,0.28779056,64240.0,64239.0,0.05521276]
[1721367903627,0.21629056,64240.0,64239.0,0.05521276]
[1721367905253,0.467828,64240.0,64239.0,0.05521276]
[1721367905449,0.52777014,64240.0,64239.0,0.05521276]
[1721367906060,0.21643814,64240.0,64239.0,0.05521276]
[1721367906407,0.26318671,64240.0,64239.0,0.11671276]
[1721367908027,0.26318671,64240.0,64239.0,0.34848076]
[1721367908028,0.00083,64240.0,64239.0,0.34848076]
[1721367908377,0.00083,64240.0,64239.0,0.65981776]
[1721367908583,0.00083,64240.0,64239.0,0.97115476]
[1721367910117,0.00083,64240.0,64239.0,1.1255365]
[1721367912723,0.00083,64240.0,64239.0,1.4368735]
[1721367914294,0.00083,64240.0,64239.0,1.44648831]
[1721367915152,0.00083,64240.0,64239.0,1.62576835]
[1721367915501,0.00083,64240.0,64239.0,1.57576835]
[1721367916133,0.00083,64240.0,64239.0,1.44648831]
[1721367916545,0.00083,64240.0,64239.0,1.57576892]
[1721367916974,0.00083,64240.0,64239.0,1.57577]
[1721367917174,0.00083,64240.0,64239.0,1.44648831]
[1721367917379,0.00083,64240.0,64239.0,0.91810447]
[1721367917585,0.00083,64240.0,64239.0,1.07377247]
[1721367917771,0.00083,64240.0,64239.0,1.25582855]
[1721367920324,0.00083,64240.0,64239.0,1.39592855]
[1721367932009,0.00083,64240.0,64239.0,1.44592855]
[1721367935390,0.00083,64240.0,64239.0,1.57521219]
[1721367935975,0.00083,64240.0,64239.0,1.44592855]
[1721367936177,0.00083,64240.0,64239.0,1.08459155]
[1721367936375,0.00083,64240.0,64239.0,0.94449155]
[1721367938124,0.07893,64240.0,64239.0,0.01176781]
[1721367938915,0.07893,64240.0,64239.0,0.002153]
[1721367939262,0.07893,64240.0,64236.0,9.68259593]
[1721367939460,0.07893,64240.0,64239.0,0.00206223]
[1721367939667,0.07893,64240.0,64236.0,9.68259593]
[1721367939900,0.07893,64240.0,64239.0,0.00206223]
[1721367940102,0.07893,64240.0,64236.0,9.84788796]
[1721367940312,0.07893,64240.0,64239.0,0.00206223]
[1721367940513,0.07893,64240.0,64236.0,9.84788796]
[1721367940664,0.07893,64240.0,64239.0,0.00206223]
[1721367940870,0.07893,64240.0,64236.0,9.84788796]
[1721367941044,0.07893,64240.0,64239.0,0.00206223]
[1721367941227,0.07893,64240.0,64237.0,0.155673]
[1721367941429,0.07893,64240.0,64236.0,9.69221296]
[1721367941430,0.07893,64240.0,64239.0,0.00206223]
[1721367941662,0.00183,64240.0,64238.0,0.155669]
[1721367941858,0.00183,64240.0,64239.0,0.00206223]
[1721367942056,0.00083,64240.0,64239.0,0.00206223]
[1721367942259,0.00183,64240.0,64238.0,0.155669]
[1721367942557,0.00083,64240.0,64239.0,0.78040664]
[1721367942765,0.00183,64240.0,64239.0,0.78040664]
[1721367942923,0.00283,64240.0,64239.0,0.78040664]
[1721367943325,0.00183,64240.0,64239.0,0.78040664]
[1721367944001,0.00283,64240.0,64239.0,0.78040664]
[1721367944632,0.00183,64240.0,64239.0,0.78040664]
[1721367945590,0.00083,64240.0,64239.0,0.78040664]
[1721367945791,0.00283,64240.0,64239.0,0.79840664]
[1721367946950,0.00283,64240.0,64239.0,0.94441964]
[1721367947345,0.00283,64240.0,64239.0,1.41013838]
[1721367955448,0.00283,64240.0,64239.0,1.53942097]
[1721367957478,0.00283,64240.0,64239.0,1.45642097]
[1721367960228,0.00283,64240.0,64239.0,1.32713838]
[1721367960458,0.00283,64240.0,64239.0,1.45642223]
[1721367960713,0.00283,64240.0,64239.0,1.32713838]
[1721367961008,0.00283,64240.0,64239.0,1.45642223]
[1721367961214,0.00283,64240.0,64239.0,1.53332223]
[1721367962774,0.00283,64240.0,64239.0,1.53332153]
[1721367965900,0.00283,64240.0,64239.0,1.40403838]
[1721367966103,0.00283,64240.0,64239.0,1.53332147]
[1721367967880,0.00283,64240.0,64239.0,1.58332147]
[1721367968292,0.00283,64240.0,64239.0,1.53332147]
[1721367968878,0.00283,64240.0,64239.0,1.58332147]
[1721367969079,0.00283,64240.0,64239.0,1.58331881]
[1721367969300,0.00283,64240.0,64239.0,1.53331881]
[1721367972215,0.00283,64240.0,64239.0,1.40403838]
[1721367972418,0.00283,64240.0,64239.0,0.17664564]
[1721367976667,0.00283,64240.0,64239.0,0.48798264]
[1721367977551,0.00283,64240.0,64239.0,0.95370138]
[1721368003717,0.14363,64240.0,64239.0,0.02097764]
[1721368005826,0.08193,64240.0,64239.0,0.02097764]
[1721368006041,0.08193,64240.0,64239.0,0.17664564]
[1721368009403,0.08193,64240.0,64239.0,0.02097764]
[1721368009404,0.00283,64240.0,64239.0,0.02097764]
[1721368009616,0.35955727,64240.0,64239.0,0.02097764]
[1721368010085,0.7175951,64240.0,64239.0,0.02097764]
[1721368010234,0.67088927,64240.0,64239.0,0.02097764]
[1721368010979,0.67109287,64240.0,64239.0,0.02097764]
[1721368012410,0.98242487,64240.0,64239.0,0.02097764]
[1721368012613,1.02912361,64240.0,64239.0,0.02097764]
[1721368012822,0.71779161,64240.0,64239.0,0.02097764]
[1721368013374,0.67109287,64240.0,64239.0,0.02097764]
[1721368013833,0.98242487,64240.0,64239.0,0.02097764]
[1721368014230,0.92366,64240.0,64239.0,0.02097764]
[1721368014410,0.98213457,64240.0,64239.0,0.02097764]
[1721368014571,0.98210397,64240.0,64239.0,0.02097764]
[1721368016985,0.98209534,64240.0,64239.0,0.02097764]
[1721368017431,0.98209537,64240.0,64239.0,0.02097764]
[1721368020652,1.79620036,64240.0,64239.0,0.02097764]
[1721368020854,1.54324642,64240.0,64239.0,0.02097764]
[1721368021087,1.59324642,64240.0,64239.0,0.02097764]
[1721368021217,1.54324642,64240.0,64239.0,0.02097764]
[1721368022845,1.48386836,64240.0,64239.0,0.01197764]
[1721368023118,1.44607227,64240.0,64239.0,0.00297764]
[1721368023325,1.44607227,64240.0,64239.0,0.00497764]
[1721368023502,1.54053144,64240.0,64239.0,0.00697764]
[1721368024285,1.65702392,64240.0,64239.0,0.00697764]
[1721368026162,1.54059281,64240.0,64239.0,0.00697764]
[1721368026775,1.05574932,64240.0,64239.0,0.00697764]
[1721368027148,1.00917907,64240.0,64239.0,0.00697764]
[1721368027803,0.0595899,64240.0,64239.0,0.23844564]
[1721368027971,0.00083,64240.0,64239.0,0.30124564]
[1721368028378,0.00083,64240.0,64239.0,0.61258264]
[1721368029235,0.00083,64240.0,64239.0,0.92391964]
[1721368029449,0.00083,64240.0,64239.0,0.61258264]
[1721368031081,0.00083,64240.0,64239.0,0.92391964]
[1721368034374,0.00083,64240.0,64239.0,1.38963838]
[1721368035144,0.00083,64240.0,64239.0,1.38563838]
[1721368035342,0.00183,64240.0,64239.0,1.39663838]
[1721368035603,0.00283,64240.0,64239.0,1.40663838]
[1721368036228,0.00183,64240.0,64239.0,1.39663838]
[1721368036429,0.00283,64240.0,64239.0,1.40863838]
[1721368036784,0.00183,64240.0,64239.0,1.39763838]
[1721368037518,0.00283,64240.0,64239.0,1.41163838]
[1721368038403,0.00283,64240.0,64239.0,1.39963838]
[1721368038404,0.00183,64240.0,64239.0,1.39963838]
[1721368038628,0.00083,64240.0,64239.0,1.38563838]
[1721368038846,0.00183,64240.0,64239.0,1.71097538]
[1721368039189,0.00083,64240.0,64239.0,1.69697538]
[1721368039438,0.00083,64240.0,64239.0,1.71097538]
[1721368039639,0.00183,64240.0,64239.0,1.71097538]
[1721368040794,0.00283,64240.0,64239.0,1.72497538]
[1721368045130,0.00283,64240.0,64239.0,1.77497538]
[1721368048039,0.00283,64240.0,64239.0,1.72497538]
[1721368050263,0.00283,64240.0,64239.0,1.77497538]
[1721368051970,0.00283,64240.0,64239.0,2.31558518]
[1721368052178,0.00283,64240.0,64239.0,2.33858518]
[1721368053329,0.00283,64240.0,64239.0,2.28858518]
[1721368053554,0.00283,64240.0,64239.0,2.33858518]
[1721368053756,0.00083,64240.0,64239.0,2.31058518]
[1721368053967,0.00083,64240.0,64239.0,2.32458518]
[1721368054169,0.00083,64240.0,64239.0,2.33858518]
[1721368054896,0.00083,64240.0,64239.0,2.33857249]
[1721368058170,0.00083,64240.0,64239.0,2.33856596]
[1721368058940,0.0629,64266.0,64239.0,2.33856596]
[1721368058941,0.0802,64268.0,64255.0,0.0795]
[1721368059078,0.0802,64268.0,64261.0,0.778075]
[1721368059286,0.0802,64268.0,64261.0,0.93447392]
[1721368059481,0.0802,64268.0,64266.0,0.466809]
[1721368059682,0.02045714,64267.0,64266.0,0.778015]
[1721368060067,0.02045714,64267.0,64266.0,0.78003218]
[1721368063080,0.09763193,64267.0,64266.0,0.46882618]
[1721368063284,0.38271479,64267.0,64266.0,0.00201718]
[1721368063647,0.22711479,64267.0,64260.0,0.155617]
[1721368063964,0.155606,64265.0,64260.0,0.155617]
[1721368064168,0.1416,64263.0,64260.0,0.155617]
[1721368064321,0.0802,64262.0,64260.0,0.155617]
[1721368065208,0.0802,64262.0,64260.0,0.158617]
[1721368065752,0.0802,64262.0,64261.0,0.155615]
[1721368067822,0.0802,64262.0,64261.0,0.160615]
[1721368068508,0.0802,64262.0,64261.0,0.166615]
[1721368070092,0.0802,64262.0,64261.0,0.16862487]
[1721368075665,0.09231827,64262.0,64261.0,0.16862487]
[1721368081825,0.01211827,64262.0,64261.0,0.54315487]
[1721368082173,0.00834,64267.0,64261.0,0.54315487]
[1721368082174,0.00834,64267.0,64266.0,0.466809]
[1721368082365,0.02045736,64267.0,64266.0,0.466809]
[1721368082504,0.02045736,64267.0,64266.0,0.46882577]
[1721368084593,0.02045736,64267.0,64266.0,0.78003177]
[1721368085302,0.02045736,64267.0,64266.0,0.84653177]
[1721368085427,0.02045736,64267.0,64266.0,0.92373177]
[1721368085626,0.02045736,64267.0,64266.0,0.92773177]
[1721368085815,0.02045736,64267.0,64266.0,1.39331951]
[1721368086414,0.00834,64267.0,64266.0,1.39331951]
[1721368086614,0.00834,64272.0,64268.0,2.166474]
[1721368086826,0.00834,64272.0,64268.0,2.38172618]
[1721368087028,0.00834,64272.0,64271.0,1.282837]
[1721368087234,0.00834,64272.0,64271.0,1.82325007]
[1721368087666,0.00834,64272.0,64271.0,1.82525707]
[1721368088111,0.00834,64272.0,64271.0,1.97963881]
[1721368088488,0.00834,64272.0,64271.0,1.99363881]
[1721368089327,0.00834,64272.0,64271.0,1.86440774]
[1721368089523,0.00834,64272.0,64271.0,1.95761145]
[1721368089987,0.00834,64272.0,64271.0,2.31879345]
[1721368090187,0.00834,64272.0,64271.0,2.34179345]
[1721368090964,0.00834,64272.0,64271.0,2.32779345]
[1721368091412,0.00834,64272.0,64271.0,2.34179345]
[1721368091759,0.00834,64272.0,64271.0,2.31379345]
[1721368092025,0.00834,64272.0,64271.0,2.34179345]
[1721368092589,0.00834,64272.0,64271.0,2.32777765]
[1721368093274,0.00834,64272.0,64271.0,2.31377765]
[1721368093767,0.00834,64272.0,64271.0,2.32777765]
[1721368094231,0.00834,64272.0,64271.0,2.34177765]
[1721368094513,0.00834,64278.0,64277.0,1.900641]
[1721368094810,0.00834,64278.0,64277.0,2.17802274]
[1721368095081,0.00834,64278.0,64277.0,2.30916879]
[1721368095545,0.00834,64278.0,64277.0,2.57032088]
[1721368095795,0.00834,64278.0,64277.0,2.62032088]
[1721368096036,0.00834,64278.0,64277.0,2.64832088]
[1721368096526,0.00083,64280.0,64279.0,1.901186]
[1721368096779,0.00083,64280.0,64279.0,2.17856774]
[1721368097030,0.00083,64280.0,64279.0,2.18052901]
[1721368097276,0.00834,64283.0,64282.0,2.236438]
[1721368097516,0.46304871,64303.0,64291.0,0.516627]
[1721368097763,0.46304871,64303.0,64291.0,1.74416374]
[1721368098000,0.46304871,64303.0,64291.0,1.74610287]
[1721368098241,0.00834,64305.0,64291.0,1.74610287]
[1721368099226,0.00834,64305.0,64291.0,1.77410287]
[1721368099471,0.00834,64305.0,64291.0,1.76010287]
[1721368099725,0.00834,64305.0,64291.0,1.74610287]
[1721368099985,0.00834,64305.0,64291.0,1.76010287]
[1721368100981,0.00834,64305.0,64291.0,1.77410287]
[1721368101190,0.00834,64305.0,64291.0,1.76010287]
[1721368101365,0.00834,64305.0,64291.0,1.77410287]
[1721368102138,0.00834,64305.0,64291.0,1.76010287]
[1721368102538,0.00834,64305.0,64291.0,1.77410287]
[1721368103210,0.00834,64305.0,64291.0,1.76010287]
[1721368103610,0.00834,64305.0,64291.0,1.77410287]
[1721368103812,0.00834,64305.0,64291.0,1.76010287]
[1721368104028,0.00834,64305.0,64291.0,1.74610287]
[1721368104235,0.00834,64305.0,64291.0,1.76010287]
[1721368104428,0.00834,64305.0,64291.0,1.77410287]
[1721368105676,0.00834,64305.0,64291.0,1.78337351]
[1721368106803,0.08654,64305.0,64291.0,1.78337351]
[1721368107362,0.00834,64305.0,64291.0,1.78337351]
[1721368107564,0.00834,64305.0,64291.0,2.09445851]
[1721368107821,0.00834,64305.0,64291.0,2.21745851]
[1721368111598,0.00834,64305.0,64291.0,2.34661476]
[1721368111727,0.00834,64305.0,64291.0,2.21745851]
[1721368111932,0.00834,64305.0,64291.0,2.34661502]
[1721368112450,0.00834,64305.0,64296.0,1.592574]
[1721368112651,0.00834,64305.0,64296.0,1.74695574]
[1721368112850,0.00834,64305.0,64296.0,1.74885751]
[1721368113799,0.00834,64305.0,64296.0,1.76285751]
[1721368115334,0.00834,64305.0,64296.0,1.77685751]
[1721368115535,0.00834,64305.0,64296.0,2.34007501]
[1721368116548,0.00834,64305.0,64296.0,2.31207501]
[1721368116751,0.00834,64305.0,64296.0,2.32607501]
[1721368116997,0.00834,64305.0,64296.0,2.34007501]
[1721368117128,0.00834,64305.0,64296.0,2.32607501]
[1721368117674,0.00834,64305.0,64296.0,2.34007501]
[1721368118176,0.00834,64305.0,64296.0,2.32607501]
[1721368118479,0.00834,64305.0,64296.0,2.32606365]
[1721368118907,0.00834,64305.0,64296.0,2.34006365]
[1721368119037,0.00834,64305.0,64296.0,2.32606365]
[1721368119469,0.00834,64305.0,64296.0,2.34006365]
[1721368121619,0.00834,64305.0,64296.0,2.34006129]
[1721368122001,0.00834,64305.0,64304.0,1.449599]
[1721368122357,0.00834,64305.0,64304.0,1.97212352]
[1721368122695,0.00834,64305.0,64304.0,1.97402281]
[1721368123303,0.00834,64305.0,64304.0,1.98802281]
[1721368123477,0.00834,64305.0,64304.0,2.00202281]
[1721368123983,0.00834,64305.0,64304.0,2.31304481]
[1721368124386,0.00834,64305.0,64304.0,2.33604481]
[1721368124773,0.00834,64305.0,64304.0,2.33604372]
[1721368126190,0.00834,64305.0,64304.0,2.32204372]
[1721368126538,0.00834,64305.0,64304.0,2.32204321]
[1721368126775,0.00834,64305.0,64304.0,2.33604321]
[1721368126955,0.00834,64305.0,64304.0,2.32204321]
[1721368127390,0.00834,64305.0,64304.0,2.33604321]
[1721368127718,0.00834,64305.0,64304.0,2.32204321]
[1721368128146,0.00834,64305.0,64304.0,2.20690203]
[1721368128457,0.00834,64305.0,64304.0,2.33604321]
[1721368129615,0.002,64309.0,64308.0,1.449513]
[1721368129789,0.002,64309.0,64308.0,1.79443592]
[1721368129991,0.002,64309.0,64308.0,1.89443592]
[1721368130201,0.002,64309.0,64308.0,1.89632526]
[1721368130768,0.002,64309.0,64308.0,1.78492526]
[1721368131440,0.002,64309.0,64308.0,1.78492311]
[1721368131644,0.002,64309.0,64308.0,1.79892311]
[1721368132645,0.002,64309.0,64308.0,1.81292311]
[1721368133924,0.002,64309.0,64308.0,1.79892311]
[1721368134526,0.002,64309.0,64308.0,1.66978408]
[1721368134728,0.002,64309.0,64308.0,1.81292042]
[1721368134930,0.002,64309.0,64308.0,1.81292035]
[1721368136521,0.002,64309.0,64308.0,1.86292035]
[1721368137769,0.002,64309.0,64308.0,1.92351977]
[1721368137953,0.002,64309.0,64308.0,2.23452277]
[1721368138148,0.002,64309.0,64308.0,2.31182277]
[1721368140459,0.002,64309.0,64308.0,2.3582465]
[1721368140661,0.002,64309.0,64308.0,2.18268708]
[1721368140868,0.002,64309.0,64308.0,2.29426933]
[1721368141065,0.002,64309.0,64308.0,1.84185197]
[1721368141269,0.002,64309.0,64308.0,1.8129169]
[1721368141898,0.002,64309.0,64308.0,1.7989169]
[1721368142104,0.002,64309.0,64308.0,1.8129169]
[1721368142501,0.002,64309.0,64308.0,1.7989169]
[1721368142722,0.002,64309.0,64308.0,1.7849169]
[1721368142948,0.002,64309.0,64308.0,1.7989169]
[1721368143349,0.002,64309.0,64308.0,1.66978408]
[1721368143549,0.002,64309.0,64308.0,1.81292119]
[1721368146678,0.002,64309.0,64308.0,1.81292109]
[1721368149866,0.002,64309.0,64308.0,1.81292273]
[1721368150078,0.002,64309.0,64308.0,1.86292273]
[1721368150856,0.002,64309.0,64308.0,1.81292273]
[1721368162226,0.002,64309.0,64308.0,1.86292273]
[1721368162653,0.002,64309.0,64308.0,1.73378408]
[1721368162856,0.002,64309.0,64308.0,1.86292273]
[1721368163033,0.002,64309.0,64308.0,2.01162273]
[1721368163844,0.002,64309.0,64308.0,2.05818939]
[1721368164052,0.002,64309.0,64308.0,2.01162273]
[1721368164257,0.002,64309.0,64308.0,2.08147502]
[1721368164817,0.002,64309.0,64308.0,2.42629473]
[1721368165841,0.002,64309.0,64308.0,2.42628353]
[1721368166370,0.00283,64309.0,64308.0,2.42628353]
[1721368167834,0.00283,64309.0,64308.0,2.76028653]
[1721368168038,0.00283,64309.0,64308.0,2.7835691]
[1721368168495,0.00283,64309.0,64308.0,2.7335691]
[1721368168713,0.00283,64309.0,64308.0,2.66743881]
[1721368168919,0.00283,64309.0,64308.0,2.65343881]
[1721368169121,0.00283,64309.0,64308.0,2.65343278]
[1721368169278,0.00283,64309.0,64308.0,2.63943278]
[1721368169487,0.00283,64309.0,64308.0,2.34118567]
[1721368169662,0.00283,64309.0,64308.0,2.35518567]
[1721368169861,0.00283,64309.0,64308.0,2.30861746]
[1721368170046,0.00283,64309.0,64308.0,2.72328695]
[1721368171933,0.00283,64309.0,64308.0,2.70928695]
[1721368172178,0.00283,64309.0,64308.0,2.72328695]
[1721368172450,0.00283,64309.0,64308.0,2.73727262]
[1721368173734,0.00283,64309.0,64308.0,2.66743465]
[1721368175486,0.00283,64309.0,64308.0,2.66743197]
[1721368176146,0.00283,64309.0,64308.0,2.36873197]
[1721368176345,0.00283,64309.0,64308.0,1.78276222]
[1721368178576,0.00283,64309.0,64308.0,1.71291433]
[1721368178780,0.00283,64309.0,64308.0,1.78276658]
[1721368181143,0.00283,64309.0,64308.0,1.71291433]
[1721368181343,0.00283,64309.0,64308.0,1.78276658]
[1721368181545,0.00283,64309.0,64308.0,1.71291433]
[1721368181984,0.00283,64309.0,64308.0,1.27278108]
[1721368182190,0.00283,64309.0,64308.0,1.40191317]
[1721368183013,0.00283,64309.0,64308.0,1.37391317]
[1721368183213,0.00283,64309.0,64308.0,1.38791317]
[1721368183491,0.00283,64309.0,64308.0,1.40191317]
[1721368185006,0.00283,64309.0,64308.0,1.40192171]
[1721368186757,0.00283,64309.0,64308.0,1.27278108]
[1721368186963,0.00283,64309.0,64308.0,1.40192105]
[1721368187743,0.00283,64309.0,64308.0,1.09091805]